bitfinex/quotes_BTCUSD_20220405
["timestamp","ask_amount","ask_price","bid_price","bid_amount"]
[1649182546515,0.3,45933.0,45918.0,0.01089]
[1649182546765,0.47729301,45933.0,45918.0,0.01089]
[1649182546865,0.054445,45932.0,45918.0,0.01089]
[1649182547066,0.17729301,45931.0,45918.0,0.01089]
[1649182547267,0.29831561,45927.0,45921.0,0.25067269]
[1649182547365,0.29831561,45927.0,45922.0,0.323687]
[1649182547466,0.29831561,45927.0,45923.0,0.323687]
[1649182547565,0.29831561,45927.0,45921.0,0.323687]
[1649182547893,0.26945935,45929.0,45921.0,0.323687]
[1649182548294,0.054448,45928.0,45921.0,0.323687]
[1649182548794,0.054448,45928.0,45921.0,0.32421289]
[1649182548894,0.05497381,45928.0,45921.0,0.32421289]
[1649182548997,0.2779556,45926.0,45921.0,0.32421289]
[1649182549797,0.2779556,45926.0,45921.0,0.323687]
[1649182549996,0.054448,45928.0,45921.0,0.60826238]
[1649182550097,0.0549738,45928.0,45921.0,0.32421288]
[1649182551047,0.28412013,45927.0,45921.0,0.323687]
[1649182551248,0.28412013,45927.0,45921.0,0.32421289]
[1649182552242,0.28412013,45927.0,45921.0,0.323687]
[1649182552444,0.28412013,45927.0,45921.0,0.32421289]
[1649182553447,0.28412013,45927.0,45921.0,0.323687]
[1649182553647,0.28412013,45927.0,45921.0,0.32421289]
[1649182554600,0.28412013,45927.0,45921.0,0.323687]
[1649182554850,0.28412013,45927.0,45921.0,0.32421289]
[1649182555200,0.28412013,45927.0,45921.0,0.58444707]
[1649182555695,0.05497381,45928.0,45921.0,0.58444707]
[1649182555793,0.054448,45928.0,45921.0,0.58392118]
[1649182556097,0.05468358,45928.0,45921.0,0.58392118]
[1649182557047,0.054448,45928.0,45921.0,0.58392118]
[1649182557248,0.05495527,45928.0,45921.0,0.58442853]
[1649182557647,0.05495527,45928.0,45921.0,0.58066777]
[1649182558150,0.00050727,45928.0,45921.0,0.58066777]
[1649182558252,0.31988485,45933.0,45922.0,0.28401809]
[1649182558350,0.31988485,45933.0,45923.0,0.367387]
[1649182558351,0.14226247,45933.0,45923.0,0.367387]
[1649182558553,0.01088,45937.0,45923.0,0.367387]
[1649182558554,0.00050727,45928.0,45923.0,0.367387]
[1649182558655,0.33043548,45938.0,45931.0,0.00060723]
[1649182558752,0.01088,45938.0,45932.0,0.323704]
[1649182558851,0.01088,45938.0,45931.0,0.00060723]
[1649182558952,0.01088,45938.0,45932.0,0.323704]
[1649182559056,0.01088,45938.0,45931.0,0.00060723]
[1649182559194,0.18817301,45938.0,45935.0,0.31192719]
[1649182559293,0.01088,45938.0,45935.0,0.31192719]
[1649182559498,0.17729301,45939.0,45935.0,0.31192719]
[1649182559898,0.17731149,45940.0,45935.0,0.31192719]
[1649182559997,0.17731149,45939.0,45935.0,0.31192719]
[1649182560096,0.17731149,45940.0,45935.0,0.31192719]
[1649182560297,0.28220016,45938.0,45935.0,0.31192719]
[1649182560596,0.28220016,45938.0,45931.0,0.00060723]
[1649182561698,0.28220016,45938.0,45932.0,0.24548755]
[1649182562098,0.00048876,45937.0,45932.0,0.24548755]
[1649182563086,0.28220016,45938.0,45932.0,0.24548755]
[1649182563186,0.17731149,45939.0,45932.0,0.24548755]
[1649182563335,0.17731149,45939.0,45933.0,0.323704]
[1649182563336,0.00048876,45937.0,45933.0,0.323704]
[1649182563735,0.00048876,45937.0,45932.0,0.24548755]
[1649182563938,0.00048876,45937.0,45933.0,0.323704]
[1649182564036,0.00048876,45937.0,45932.0,0.24548755]
[1649182564138,0.00048876,45937.0,45933.0,0.323704]
[1649182564239,0.17731149,45939.0,45932.0,0.24548755]
[1649182564388,0.28681111,45938.0,45932.0,0.24548755]
[1649182564541,0.00048961,45937.0,45933.0,0.623704]
[1649182564644,0.00048961,45937.0,45933.0,0.67811891]
[1649182565087,0.00048961,45937.0,45933.0,0.68900891]
[1649182565488,0.17731149,45944.0,45940.0,0.23508716]
[1649182565592,0.27493097,45946.0,45941.0,0.323704]
[1649182565593,0.17731149,45945.0,45941.0,0.323704]
[1649182565693,0.00048961,45937.0,45933.0,0.3]
[1649182565789,0.00048961,45937.0,45934.0,0.323704]
[1649182566093,0.00048961,45937.0,45935.0,0.323704]
[1649182566189,0.00048961,45937.0,45936.0,0.323704]
[1649182566289,0.00048961,45937.0,45931.0,0.30060723]
[1649182566390,0.00048961,45937.0,45932.0,0.323704]
[1649182566651,0.30300094,45936.0,45933.0,0.27197985]
[1649182566746,0.30300094,45936.0,45934.0,0.323704]
[1649182566848,0.13489031,45940.0,45934.0,0.323704]
[1649182566946,0.00048961,45937.0,45934.0,0.323704]
[1649182567147,0.05492961,45937.0,45934.0,0.323704]
[1649182567347,0.10937061,45937.0,45934.0,0.323704]
[1649182567848,0.23318673,45936.0,45934.0,0.323704]
[1649182568047,0.13489031,45940.0,45934.0,0.323704]
[1649182568148,0.00048955,45938.0,45934.0,0.323704]
[1649182569050,0.358155,45940.0,45934.0,0.323704]
[1649182569253,0.13489031,45940.0,45934.0,0.323704]
[1649182569353,0.00048955,45938.0,45934.0,0.323704]
[1649182570154,0.29018192,45938.0,45934.0,0.323704]
[1649182570257,0.31225648,45940.0,45934.0,0.323704]
[1649182570393,0.13489031,45940.0,45934.0,0.323704]
[1649182570493,0.00048955,45938.0,45934.0,0.323704]
[1649182570995,0.00048955,45938.0,45934.0,0.623704]
[1649182571097,0.00048955,45938.0,45934.0,0.323704]
[1649182571395,0.00048955,45938.0,45937.0,0.29736811]
[1649182571497,0.13489031,45940.0,45937.0,0.29736811]
[1649182571645,0.31225648,45940.0,45937.0,0.29736811]
[1649182571947,0.31225648,45940.0,45938.0,0.323704]
[1649182572047,0.13489031,45940.0,45938.0,0.323704]
[1649182573153,0.13489031,45940.0,45938.0,0.82515087]
[1649182573253,0.13489031,45940.0,45939.0,0.3]
[1649182573353,0.13489031,45940.0,45939.0,0.623704]
[1649182576803,0.13251469,45940.0,45939.0,0.64847204]
[1649182577654,0.01088,45954.0,45939.0,0.64847204]
[1649182577655,0.01088,45954.0,45941.0,0.323704]
[1649182577759,0.00191057,45952.0,45943.0,0.323704]
[1649182577913,0.00191057,45952.0,45945.0,0.42888014]
[1649182578004,0.00191057,45952.0,45947.0,0.05439754]
[1649182578105,0.00191057,45952.0,45948.0,0.323704]
[1649182578202,0.00191057,45952.0,45949.0,0.3]
[1649182578303,0.00191057,45952.0,45950.0,0.323704]
[1649182578705,0.29839699,45955.0,45950.0,0.61610417]
[1649182578808,0.01088,45954.0,45950.0,0.61610417]
[1649182578905,0.00047768,45953.0,45950.0,0.61610417]
[1649182579906,0.27576855,45955.0,45950.0,0.61610417]
[1649182580105,0.00047768,45954.0,45950.0,0.61610417]
[1649182580808,0.00047768,45954.0,45950.0,0.323704]
[1649182581112,0.27576855,45955.0,45947.0,0.31367717]
[1649182581418,0.32249022,45953.0,45941.0,0.323704]
[1649182581513,0.32249022,45953.0,45942.0,0.01088]
[1649182581653,0.32249022,45953.0,45943.0,0.323704]
[1649182581750,0.00049115,45954.0,45943.0,0.323704]
[1649182581852,0.00049115,45954.0,45942.0,0.01088]
[1649182581853,0.28445849,45947.0,45942.0,0.26666865]
[1649182581951,0.054425,45946.0,45943.0,0.323704]
[1649182584055,0.28494968,45947.0,45943.0,0.323704]
[1649182584352,0.00049119,45947.0,45943.0,0.323704]
[1649182584654,0.054424,45948.0,45943.0,0.323704]
[1649182585009,0.00049059,45947.0,45943.0,0.323704]
[1649182585303,0.22971336,45946.0,45941.0,0.3000491]
[1649182585444,0.22971336,45946.0,45942.0,0.323704]
[1649182585592,0.00049059,45947.0,45942.0,0.323704]
[1649182585896,0.054424,45948.0,45942.0,0.323704]
[1649182586093,0.00049059,45947.0,45942.0,0.323704]
[1649182587043,0.0022691,45947.0,45942.0,0.323704]
[1649182587346,0.00275969,45947.0,45942.0,0.323704]
[1649182588244,0.0022691,45947.0,45942.0,0.323704]
[1649182588494,0.00275975,45947.0,45942.0,0.323704]
[1649182589257,0.00275975,45947.0,45941.0,0.3000491]
[1649182589460,0.0022691,45947.0,45941.0,0.3000491]
[1649182589759,0.00049066,45946.0,45941.0,0.3000491]
[1649182590307,0.00049066,45946.0,45942.0,0.323704]
[1649182590409,0.00275942,45946.0,45942.0,0.323704]
[1649182590709,0.00226876,45946.0,45942.0,0.323704]
[1649182591009,0.00275942,45946.0,45942.0,0.323704]
[1649182591614,0.00275942,45946.0,45942.0,0.623704]
[1649182591810,0.00275942,45946.0,45944.0,0.323704]
[1649182591911,0.00226876,45946.0,45945.0,0.3]
[1649182592010,0.00226876,45946.0,45945.0,0.623704]
[1649182592310,0.00049065,45946.0,45945.0,0.623704]
[1649182593154,0.01088,45951.0,45945.0,0.623704]
[1649182593256,0.01088,45951.0,45949.0,0.31462558]
[1649182593357,0.01088,45951.0,45950.0,0.21797497]
[1649182593455,0.01088,45951.0,45949.0,0.31462558]
[1649182593553,0.01088,45951.0,45950.0,0.323554]
[1649182593656,0.01088,45951.0,45949.0,0.31462558]
[1649182593756,0.01088,45951.0,45950.0,0.323554]
[1649182593857,0.01088,45951.0,45949.0,0.31462558]
[1649182593957,0.01088,45951.0,45950.0,0.323554]
[1649182594056,0.01088,45951.0,45949.0,0.31462558]
[1649182594161,0.01088,45951.0,45950.0,0.323554]
[1649182594508,0.00023487,45952.0,45950.0,0.323554]
[1649182594658,0.01088,45951.0,45949.0,0.31462558]
[1649182594758,0.01088,45951.0,45950.0,0.323554]
[1649182595057,0.01088,45951.0,45950.0,0.6332922]
[1649182595158,0.01088,45951.0,45950.0,0.3097382]
[1649182595261,0.01088,45951.0,45950.0,0.323554]
[1649182595560,0.01088,45953.0,45950.0,0.323554]
[1649182595660,0.23249494,45953.0,45949.0,0.31462558]
[1649182595759,0.23302183,45953.0,45949.0,0.31462558]
[1649182596511,0.01140689,45953.0,45949.0,0.31462558]
[1649182596643,0.00191905,45951.0,45950.0,0.323554]
[1649182597044,0.00166265,45951.0,45950.0,0.323554]
[1649182597247,0.00166265,45951.0,45950.0,0.59402705]
[1649182598948,0.01332594,45953.0,45950.0,0.59402705]
[1649182599048,0.00244594,45953.0,45950.0,0.323554]
[1649182599147,0.00191905,45953.0,45950.0,0.323554]
[1649182599347,0.00244594,45953.0,45950.0,0.323554]
[1649182600050,0.00244594,45953.0,45950.0,0.60884737]
[1649182600252,0.00244594,45953.0,45949.0,0.31462558]
[1649182600398,0.00191905,45953.0,45949.0,0.31462558]
[1649182601093,0.00189768,45951.0,45949.0,0.31462558]
[1649182601193,0.00189768,45951.0,45950.0,0.323554]
[1649182602493,0.00189768,45951.0,45949.0,0.31462558]
[1649182602595,0.00240355,45953.0,45941.0,0.323554]
[1649182602696,0.00189797,45953.0,45943.0,0.323554]
[1649182602946,0.15191797,45952.0,45943.0,0.323554]
[1649182603147,0.20633297,45952.0,45943.0,0.373554]
[1649182603648,0.20633297,45952.0,45945.0,0.323554]
[1649182603748,0.45832564,45952.0,45945.0,0.323554]
[1649182603999,0.23044076,45950.0,45945.0,0.323554]
[1649182604442,0.00049114,45951.0,45945.0,0.323554]
[1649182605091,0.30868523,45952.0,45945.0,0.323554]
[1649182605192,0.53039799,45952.0,45945.0,0.323554]
[1649182605292,0.27840532,45952.0,45945.0,0.323554]
[1649182605394,0.00049114,45950.0,45945.0,0.323554]
[1649182606347,0.27840532,45952.0,45945.0,0.323554]
[1649182606448,0.22399032,45952.0,45946.0,0.3]
[1649182606548,0.00049115,45950.0,45947.0,0.323554]
[1649182607049,0.00276803,45950.0,45947.0,0.323554]
[1649182607553,0.00227688,45950.0,45947.0,0.323554]
[1649182607653,0.22171276,45955.0,45950.0,0.00473502]
[1649182607750,0.22171276,45955.0,45951.0,0.323554]
[1649182607907,0.22171276,45955.0,45953.0,0.323554]
[1649182608108,0.22171276,45956.0,45954.0,0.28907569]
[1649182608205,0.01088,45957.0,45954.0,0.28907569]
[1649182608206,0.23259276,45957.0,45954.0,0.28907569]
[1649182608357,0.23259276,45957.0,45955.0,0.30693832]
[1649182608859,0.22171276,45958.0,45955.0,0.30693832]
[1649182608955,0.01088,45957.0,45955.0,0.30693832]
[1649182610260,0.22220294,45958.0,45955.0,0.30693832]
[1649182610359,0.00049018,45958.0,45955.0,0.60693832]
[1649182610459,0.00049018,45958.0,45955.0,0.30693832]
[1649182610860,0.00049018,45958.0,45955.0,0.60693832]
[1649182611161,0.22171276,45959.0,45955.0,0.60693832]
[1649182611365,0.22220299,45959.0,45955.0,0.30693832]
[1649182612347,0.22171276,45959.0,45955.0,0.30693832]
[1649182612548,0.22220299,45959.0,45955.0,0.30693832]
[1649182613449,0.22220299,45959.0,45956.0,0.323554]
[1649182613552,0.22171276,45959.0,45955.0,0.22683728]
[1649182613754,0.22220299,45959.0,45955.0,0.22683728]
[1649182614403,0.00049023,45959.0,45955.0,0.52683728]
[1649182614502,0.00049023,45959.0,45956.0,0.323554]
[1649182614601,0.00049023,45959.0,45955.0,0.52683728]
[1649182614701,0.22171276,45960.0,45956.0,0.323554]
[1649182614802,0.22171276,45960.0,45955.0,0.52683728]
[1649182615002,0.00049022,45960.0,45955.0,0.52683728]
[1649182615403,0.00049022,45960.0,45955.0,0.58122628]
[1649182615955,0.01088,45962.0,45955.0,0.58122628]
[1649182616155,0.00049022,45960.0,45955.0,0.58122628]
[1649182616557,0.00049022,45960.0,45955.0,0.22683728]
[1649182616657,0.00049022,45960.0,45955.0,0.52683728]
[1649182617108,0.01088,45962.0,45955.0,0.52683728]
[1649182617357,0.00049022,45960.0,45955.0,0.52683728]
[1649182617656,0.00049022,45960.0,45956.0,0.323554]
[1649182617761,0.00049022,45960.0,45955.0,0.58122528]
[1649182618160,0.00049022,45960.0,45955.0,0.52683728]
[1649182618359,0.40860202,45963.0,45955.0,0.52683728]
[1649182618559,0.00049022,45960.0,45955.0,0.52683728]
[1649182619062,0.00049022,45960.0,45956.0,0.323554]
[1649182619403,0.00049022,45960.0,45955.0,0.52683728]
[1649182619506,0.40860202,45963.0,45956.0,0.323554]
[1649182619604,0.2660516,45963.0,45955.0,0.52683728]
[1649182619807,0.00049022,45960.0,45954.0,0.34346653]
[1649182619911,0.00049022,45960.0,45954.0,0.28907569]
[1649182620207,0.00049022,45960.0,45950.0,0.00473502]
[1649182620554,0.26654182,45960.0,45950.0,0.00473502]
[1649182620657,0.2660516,45959.0,45950.0,0.00473502]
[1649182620859,0.26867714,45953.0,45950.0,0.00473502]
[1649182621106,0.31888281,45956.0,45950.0,0.00473502]
[1649182622159,0.00049062,45955.0,45951.0,0.25860319]
[1649182622261,0.00049062,45955.0,45950.0,0.00473502]
[1649182623150,0.62042038,45956.0,45950.0,0.00473502]
[1649182623348,0.00049062,45955.0,45950.0,0.00473502]
[1649182624351,0.62042038,45956.0,45950.0,0.00473502]
[1649182624451,0.7629708,45956.0,45950.0,0.00473502]
[1649182624555,0.00049062,45955.0,45950.0,0.00473502]
[1649182625354,0.22217144,45955.0,45950.0,0.00473502]
[1649182625554,0.22168082,45955.0,45950.0,0.00473502]
[1649182625658,0.36423124,45955.0,45950.0,0.00473502]
[1649182625753,0.36472248,45955.0,45950.0,0.00473502]
[1649182626207,0.22168082,45954.0,45950.0,0.00473502]
[1649182626945,0.22217206,45954.0,45950.0,0.00473502]
[1649182627896,0.14255042,45955.0,45950.0,0.00473502]
[1649182627897,0.36423124,45955.0,45950.0,0.00473502]
[1649182628201,0.00049124,45954.0,45950.0,0.00473502]
[1649182628302,0.00049124,45954.0,45951.0,0.323554]
[1649182629153,0.22168082,45956.0,45951.0,0.323554]
[1649182629251,0.51907214,45957.0,45950.0,0.00473502]
[1649182629353,0.00049144,45955.0,45951.0,0.323554]
[1649182629503,0.00049144,45955.0,45952.0,0.323554]
[1649182630302,0.22168082,45956.0,45952.0,0.323554]
[1649182630403,0.22168082,45956.0,45951.0,0.054403]
[1649182630504,0.22168082,45956.0,45952.0,0.323554]
[1649182630605,0.22217225,45956.0,45951.0,0.054403]
[1649182631006,0.22217225,45956.0,45952.0,0.323554]
[1649182631107,0.22217225,45956.0,45951.0,0.054403]
[1649182631506,0.22168082,45957.0,45951.0,0.054403]
[1649182631606,0.2769316,45959.0,45951.0,0.054403]
[1649182631607,0.22168082,45956.0,45951.0,0.054403]
[1649182631808,0.22217225,45956.0,45951.0,0.054403]
[1649182632361,0.22217225,45956.0,45952.0,0.323554]
[1649182632461,0.00049143,45956.0,45955.0,0.25447833]
[1649182632558,0.22217242,45956.0,45955.0,0.25447833]
[1649182632759,0.01088,45959.0,45955.0,0.25447833]
[1649182632860,0.22168387,45956.0,45955.0,0.25447833]
[1649182633316,0.21668387,45957.0,45955.0,0.25447833]
[1649182633411,0.21668387,45957.0,45955.0,0.54201296]
[1649182633518,0.15194558,45958.0,45955.0,0.54201296]
[1649182633615,0.15194558,45958.0,45955.0,0.41780045]
[1649182633713,0.15194558,45958.0,45956.0,0.323554]
[1649182633817,0.15194558,45958.0,45955.0,0.41780045]
[1649182633917,0.01088,45960.0,45956.0,0.323554]
[1649182634018,0.01088,45960.0,45955.0,0.47219245]
[1649182634157,0.00023451,45959.0,45955.0,0.47219245]
[1649182634300,0.01088,45958.0,45955.0,0.47219245]
[1649182634401,0.01088,45958.0,45956.0,0.323554]
[1649182635253,0.01088,45961.0,45956.0,0.323554]
[1649182635351,0.00023451,45959.0,45955.0,0.5265875]
[1649182635499,0.00023451,45959.0,45956.0,0.323554]
[1649182635802,0.00023451,45959.0,45957.0,0.3]
[1649182636204,0.00023451,45959.0,45958.0,0.323554]
[1649182636304,0.26605511,45962.0,45958.0,0.323554]
[1649182636404,0.26605511,45962.0,45957.0,0.3]
[1649182636606,0.00052689,45960.0,45957.0,0.3]
[1649182637556,0.26605511,45962.0,45957.0,0.3]
[1649182637757,0.00052689,45961.0,45957.0,0.3]
[1649182638696,0.26605511,45962.0,45957.0,0.3]
[1649182638995,0.00052688,45961.0,45957.0,0.3]
[1649182639901,0.26605511,45962.0,45957.0,0.3]
[1649182640003,0.27693511,45963.0,45957.0,0.3]
[1649182640198,0.00052688,45961.0,45957.0,0.3]
[1649182641200,0.27693511,45963.0,45957.0,0.3]
[1649182641401,0.00050558,45961.0,45957.0,0.3]
[1649182641666,0.00050558,45961.0,45960.0,0.22125724]
[1649182642068,0.00050558,45961.0,45957.0,0.3]
[1649182642366,0.22174693,45960.0,45957.0,0.3]
[1649182642870,0.22174693,45960.0,45958.0,0.323554]
[1649182642973,0.22225251,45961.0,45957.0,0.3]
[1649182643068,0.22225251,45961.0,45958.0,0.24118636]
[1649182643270,0.22174693,45960.0,45958.0,0.24118636]
[1649182644876,0.22174693,45960.0,45955.0,0.23905287]
[1649182644980,0.22174693,45960.0,45956.0,0.623554]
[1649182645399,0.22174693,45959.0,45956.0,0.623554]
[1649182645595,0.17740029,45957.0,45956.0,0.623554]
[1649182645845,0.17740029,45957.0,45956.0,0.58026126]
[1649182646196,0.22224376,45959.0,45956.0,0.323554]
[1649182646348,0.1774073,45957.0,45956.0,0.323554]
[1649182646447,0.22224376,45959.0,45956.0,0.323554]
[1649182646647,0.22224376,45959.0,45951.0,0.323554]
[1649182646748,0.17740265,45955.0,45951.0,0.323554]
[1649182646949,0.17740265,45954.0,45951.0,0.323554]
[1649182647096,0.27051488,45952.0,45951.0,0.323554]
[1649182647195,0.17740265,45952.0,45951.0,0.323554]
[1649182647295,0.17739841,45952.0,45951.0,0.323554]
[1649182647398,0.17739841,45952.0,45944.0,0.01088]
[1649182647497,0.17739841,45951.0,45944.0,0.01088]
[1649182647598,0.22174693,45953.0,45947.0,0.2442891]
[1649182647994,0.22174693,45952.0,45947.0,0.2442891]
[1649182648498,0.23982826,45951.0,45947.0,0.2442891]
[1649182649153,0.22174693,45952.0,45947.0,0.2442891]
[1649182649255,0.22174693,45951.0,45947.0,0.2442891]
[1649182649656,0.26605511,45953.0,45947.0,0.2442891]
[1649182649857,0.26654498,45953.0,45947.0,0.2442891]
[1649182650060,0.27982994,45951.0,45947.0,0.2442891]
[1649182650559,0.50164337,45951.0,45947.0,0.2442891]
[1649182650659,0.27982994,45951.0,45947.0,0.2442891]
[1649182652362,0.26605511,45952.0,45947.0,0.2442891]
[1649182652463,0.00049035,45953.0,45947.0,0.2442891]
[1649182653145,0.26605511,45953.0,45947.0,0.2442891]
[1649182653347,0.28764529,45951.0,45947.0,0.2442891]
[1649182653647,0.03304277,45952.0,45947.0,0.2442891]
[1649182654750,0.2200443,45951.0,45947.0,0.2442891]
[1649182655498,0.03304277,45952.0,45947.0,0.2442891]
[1649182656254,0.03304277,45952.0,45951.0,0.323554]
[1649182656450,0.03304277,45952.0,45951.0,0.56549823]
[1649182657012,0.00049031,45954.0,45951.0,0.67429911]
[1649182657114,0.00049031,45954.0,45952.0,0.623554]
[1649182657611,0.00049031,45954.0,45952.0,0.62348525]
[1649182658012,0.01088,45957.0,45952.0,0.3]
[1649182658111,0.01088,45957.0,45956.0,0.28464895]
[1649182658712,0.27693511,45957.0,45956.0,0.28464895]
[1649182658961,0.51071132,45957.0,45956.0,0.28464895]
[1649182659062,0.24465621,45957.0,45956.0,0.28464895]
[1649182659265,0.01088,45957.0,45956.0,0.28464895]
[1649182659763,0.27693511,45957.0,45956.0,0.28464895]
[1649182660401,0.50456772,45957.0,45956.0,0.28464895]
[1649182660651,0.50456772,45957.0,45956.0,0.25618406]
[1649182660751,0.50456772,45957.0,45951.0,0.054402]
[1649182661053,0.26605511,45956.0,45950.0,0.00473502]
[1649182661152,0.01088,45955.0,45950.0,0.00473502]
[1649182661257,0.27693511,45955.0,45950.0,0.00473502]
[1649182661354,0.26605511,45955.0,45950.0,0.00473502]
[1649182661852,0.26628962,45955.0,45950.0,0.00473502]
[1649182662065,0.49365186,45955.0,45950.0,0.00473502]
[1649182662152,0.26605511,45954.0,45950.0,0.00473502]
[1649182662755,0.49341735,45955.0,45950.0,0.00473502]
[1649182663054,0.26654548,45954.0,45950.0,0.00473502]
[1649182663358,0.00049037,45954.0,45950.0,0.00473502]
[1649182663456,0.46290772,45955.0,45950.0,0.00473502]
[1649182664550,0.22736224,45955.0,45950.0,0.00473502]
[1649182664852,0.05442,45953.0,45950.0,0.00473502]
[1649182669593,0.01088,45955.0,45950.0,0.00473502]
[1649182672148,0.27711709,45955.0,45950.0,0.00473502]
[1649182672249,0.27711709,45955.0,45953.0,0.24721776]
[1649182672350,0.01088,45955.0,45953.0,0.24721776]
[1649182673654,0.01088,45956.0,45953.0,0.24721776]
[1649182673854,0.01138613,45956.0,45953.0,0.24721776]
[1649182674755,0.01088,45956.0,45953.0,0.24721776]
[1649182675676,0.27711709,45956.0,45953.0,0.24721776]
[1649182675876,0.15155693,45955.0,45953.0,0.24721776]
[1649182677882,0.01137687,45956.0,45953.0,0.24721776]
[1649182678430,0.01088,45956.0,45953.0,0.24721776]
[1649182678532,0.01088,45957.0,45953.0,0.24721776]
[1649182678631,0.27760699,45957.0,45953.0,0.24721776]
[1649182678832,0.15151627,45956.0,45953.0,0.24656416]
[1649182678930,0.01088,45955.0,45953.0,0.24656416]
[1649182679760,0.01088,45955.0,45954.0,0.32353]
[1649182679862,0.0113699,45956.0,45953.0,0.24656416]
[1649182680663,0.0113699,45956.0,45953.0,0.20794763]
[1649182680760,0.01088,45956.0,45953.0,0.20794763]
[1649182681063,0.01088,45956.0,45950.0,0.00473502]
[1649182681266,0.27711709,45956.0,45950.0,0.00473502]
[1649182681761,0.15151557,45955.0,45950.0,0.00473502]
[1649182682063,0.15151557,45955.0,45951.0,0.32353]
[1649182682467,0.15151557,45955.0,45954.0,0.21740508]
[1649182682715,0.15151557,45955.0,45954.0,0.54093508]
[1649182682817,0.00049036,45956.0,45954.0,0.54093508]
[1649182682966,0.00049036,45956.0,45955.0,0.28257068]
[1649182683113,0.00049036,45956.0,45955.0,0.60610068]
[1649182683214,0.26614568,45959.0,45955.0,0.60610068]
[1649182683314,0.01088,45958.0,45955.0,0.28257068]
[1649182683515,0.01137036,45958.0,45955.0,0.28257068]
[1649182684164,0.01137036,45958.0,45955.0,0.33696368]
[1649182684266,0.00049036,45958.0,45955.0,0.33696368]
[1649182684367,0.30202204,45959.0,45955.0,0.33696368]
[1649182684665,0.3025124,45959.0,45955.0,0.33696368]
[1649182684966,0.56865808,45959.0,45955.0,0.33696368]
[1649182685619,0.56816772,45959.0,45955.0,0.33696368]
[1649182685817,0.56865804,45959.0,45955.0,0.33696368]
[1649182686021,0.56865804,45959.0,45955.0,0.28257068]
[1649182686123,0.56865804,45959.0,45949.0,0.3]
[1649182686226,0.2279084,45952.0,45948.0,0.2285658]
[1649182686324,0.26614568,45957.0,45952.0,0.47499151]
[1649182686522,0.26614568,45956.0,45952.0,0.47499151]
[1649182686660,0.26614568,45955.0,45952.0,0.47499151]
[1649182687159,0.15152265,45954.0,45952.0,0.47499151]
[1649182687357,0.43888048,45954.0,45952.0,0.47499151]
[1649182687857,0.054417,45953.0,45952.0,0.47499151]
[1649182687956,0.054417,45953.0,45952.0,0.79852151]
[1649182689211,0.054417,45953.0,45952.0,0.47499151]
[1649182694397,0.26614568,45955.0,45952.0,0.79852151]
[1649182694500,0.26614568,45955.0,45953.0,0.62353]
[1649182694600,0.14307859,45956.0,45954.0,0.3]
[1649182694601,0.40922427,45956.0,45954.0,0.3]
[1649182694697,0.26667385,45956.0,45955.0,0.32353]
[1649182694796,0.26667385,45956.0,45955.0,0.62353]
[1649182694903,0.00052817,45956.0,45955.0,0.91086371]
[1649182695197,0.15343042,45960.0,45955.0,0.91086371]
[1649182695198,0.26614568,45959.0,45955.0,0.91086371]
[1649182695300,0.26614568,45959.0,45955.0,0.58733371]
[1649182695401,0.26614568,45959.0,45956.0,0.30541357]
[1649182695600,0.00052817,45958.0,45956.0,0.30541357]
[1649182695699,0.22247976,45958.0,45956.0,0.30541357]
[1649182696505,0.22195159,45958.0,45956.0,0.30541357]
[1649182697510,0.00048915,45959.0,45956.0,0.30541357]
[1649182697511,0.22244074,45959.0,45956.0,0.30541357]
[1649182697607,0.22195159,45959.0,45956.0,0.30541357]
[1649182697954,0.22242188,45959.0,45956.0,0.30541357]
[1649182698855,0.22195159,45959.0,45956.0,0.30541357]
[1649182699008,0.22195159,45959.0,45957.0,0.377921]
[1649182699116,0.00047029,45960.0,45959.0,0.32353]
[1649182699208,0.00047029,45960.0,45959.0,0.62353]
[1649182700006,0.01,45964.0,45959.0,0.677908]
[1649182700106,0.01,45964.0,45959.0,0.99249968]
[1649182700359,0.01,45964.0,45963.0,0.27678947]
[1649182700458,0.01,45964.0,45963.0,0.60031947]
[1649182701311,0.01,45964.0,45963.0,0.90031947]
[1649182701407,0.01,45964.0,45963.0,1.19063773]
[1649182703246,0.01,45964.0,45963.0,1.24501439]
[1649182703948,0.01,45964.0,45963.0,1.42182321]
[1649182704149,0.01,45964.0,45963.0,1.42176229]
[1649182704650,0.01,45964.0,45963.0,1.42318072]
[1649182706306,0.01,45964.0,45963.0,1.42176229]
[1649182706805,0.01,45964.0,45963.0,1.43264229]
[1649182707306,0.01,45964.0,45963.0,1.53264229]
[1649182707413,0.40351652,45976.0,45964.0,1.1]
[1649182707512,0.40351652,45976.0,45966.0,0.054366]
[1649182707513,0.00201751,45973.0,45966.0,0.054366]
[1649182707610,0.00201751,45973.0,45969.0,0.05436934]
[1649182707710,0.00201751,45973.0,45972.0,0.55635433]
[1649182707811,0.00201751,45973.0,45972.0,0.85635433]
[1649182708461,0.18747271,45979.0,45972.0,0.85635433]
[1649182708462,0.23254234,45978.0,45972.0,1.09898153]
[1649182708560,0.23254234,45978.0,45972.0,0.77545153]
[1649182708713,0.01,45979.0,45974.0,0.054371]
[1649182708916,0.00051526,45975.0,45974.0,0.054371]
[1649182709013,0.00051526,45975.0,45974.0,0.377901]
[1649182709657,0.01,45979.0,45974.0,0.377901]
[1649182709755,0.26665321,45977.0,45974.0,0.054371]
[1649182709955,0.26716846,45977.0,45974.0,0.054371]
[1649182710259,0.68423388,45977.0,45969.0,0.31088]
[1649182710361,0.26716846,45977.0,45969.0,0.01088]
[1649182710457,0.26716846,45977.0,45965.0,0.01088]
[1649182710657,0.17747271,45976.0,45963.0,0.32353]
[1649182710859,0.17747271,45976.0,45962.0,0.01088]
[1649182710860,0.17747271,45976.0,45964.0,0.01088]
[1649182710966,0.17747271,45976.0,45962.0,0.01088]
[1649182711059,0.26578992,45966.0,45963.0,0.32353]
[1649182711157,0.17747271,45976.0,45964.0,0.01088]
[1649182711259,0.26443168,45970.0,45962.0,0.31088]
[1649182711408,0.26443168,45970.0,45963.0,0.32353]
[1649182711515,0.054398,45969.0,45965.0,0.32353]
[1649182711808,0.05491127,45973.0,45965.0,0.32353]
[1649182712108,0.054396,45973.0,45965.0,0.32353]
[1649182712307,0.30282914,45969.0,45965.0,0.32353]
[1649182712559,0.60895755,45969.0,45965.0,0.32353]
[1649182712917,0.054401,45968.0,45965.0,0.32353]
[1649182713018,0.60895755,45969.0,45965.0,0.32353]
[1649182713314,0.60895755,45969.0,45963.0,0.32353]
[1649182713562,0.60942954,45969.0,45963.0,0.32353]
[1649182714466,0.60895755,45969.0,45963.0,0.32353]